[Event "*** SCC Grand Prix: Titled Tuesday Blitz"]
[Site "Chess.com"]
[Date "2020.06.02"]
[Round "4"]
[White "guillembaches"]
[Black "korkmaz16"]
[Result "1/2-1/2"]
[WhiteElo "2435"]
[BlackElo "2259"]
[TimeControl "180+1"]
[EndTime "10:39:46 PDT"]
[Termination "Game drawn by repetition"]

1. e4 {[%clk 0:03:00.9]} 1... e6 {[%clk 0:02:58.1]} 2. Nf3 {[%clk 0:03:00.9]}
2... d5 {[%clk 0:02:57.8]} 3. exd5 {[%clk 0:03:01.8]} 3... exd5 {[%clk
0:02:57.4]} 4. d4 {[%clk 0:03:02.4]} 4... Nf6 {[%clk 0:02:57.3]} 5. Bd3 {[%clk
0:03:02.5]} 5... Bd6 {[%clk 0:02:57.1]} 6. O-O {[%clk 0:03:02.9]} 6... O-O
{[%clk 0:02:56.5]} 7. h3 {[%clk 0:03:03.4]} 7... h6 {[%clk 0:02:49]} 8. c4
{[%clk 0:03:01.9]} 8... dxc4 {[%clk 0:02:47.1]} 9. Bxc4 {[%clk 0:03:02.8]} 9...
Nc6 {[%clk 0:02:42.8]} 10. Nc3 {[%clk 0:02:57.8]} 10... a6 {[%clk 0:02:41.4]}
11. a3 {[%clk 0:02:55.6]} 11... Bf5 {[%clk 0:02:35.3]} 12. Re1 {[%clk
0:02:48.4]} 12... Qd7 {[%clk 0:02:34.7]} 13. d5 {[%clk 0:02:36.4]} 13... Ne7
{[%clk 0:02:14.8]} 14. Nd4 {[%clk 0:02:30.7]} 14... Bh7 {[%clk 0:02:06.6]} 15.
Qf3 {[%clk 0:02:27.9]} 15... Nf5 {[%clk 0:01:58.9]} 16. Nxf5 {[%clk 0:02:06.3]}
16... Qxf5 {[%clk 0:01:58.1]} 17. Qxf5 {[%clk 0:02:04.5]} 17... Bxf5 {[%clk
0:01:57.4]} 18. Be3 {[%clk 0:02:04.1]} 18... Rfe8 {[%clk 0:01:52.8]} 19. g4
{[%clk 0:02:02.4]} 19... Bh7 {[%clk 0:01:51.6]} 20. Bd4 {[%clk 0:01:54.9]} 20...
Ne4 {[%clk 0:01:50.2]} 21. Nxe4 {[%clk 0:01:54.2]} 21... Bxe4 {[%clk 0:01:46.9]}
22. Re3 {[%clk 0:01:44.1]} 22... Bf4 {[%clk 0:01:43.7]} 23. Re2 {[%clk
0:01:31.7]} 23... Bf3 {[%clk 0:01:35.8]} 24. Rxe8+ {[%clk 0:01:29.3]} 24... Rxe8
{[%clk 0:01:34.8]} 25. Kf1 {[%clk 0:01:24.3]} 25... b5 {[%clk 0:01:31.3]} 26.
Bd3 {[%clk 0:01:23.4]} 26... Bxd5 {[%clk 0:01:29.8]} 27. Bc3 {[%clk 0:01:13.3]}
27... c5 {[%clk 0:01:28]} 28. Be2 {[%clk 0:01:09.6]} 28... b4 {[%clk 0:01:15.3]}
29. axb4 {[%clk 0:01:06.3]} 29... cxb4 {[%clk 0:01:15.5]} 30. Bxb4 {[%clk
0:01:06.3]} 30... Bg2+ {[%clk 0:00:55.8]} 31. Kxg2 {[%clk 0:01:05.7]} 31... Rxe2
{[%clk 0:00:55.9]} 32. Bc3 {[%clk 0:01:01]} 32... Re6 {[%clk 0:00:55.1]} 33. Rd1
{[%clk 0:00:57.1]} 33... Be5 {[%clk 0:00:52.1]} 34. Rd8+ {[%clk 0:00:46.2]}
34... Kh7 {[%clk 0:00:51.7]} 35. Rd7 {[%clk 0:00:46.2]} 35... Bxc3 {[%clk
0:00:50.9]} 36. bxc3 {[%clk 0:00:46.2]} 36... Rc6 {[%clk 0:00:44.9]} 37. Ra7
{[%clk 0:00:36.9]} 37... f6 {[%clk 0:00:38.4]} 38. f4 {[%clk 0:00:33.8]} 38...
Kg6 {[%clk 0:00:31.9]} 39. f5+ {[%clk 0:00:30]} 39... Kh7 {[%clk 0:00:31.4]} 40.
c4 {[%clk 0:00:28.2]} 40... Rxc4 {[%clk 0:00:29.2]} 41. Rxa6 {[%clk 0:00:27.7]}
41... h5 {[%clk 0:00:28.9]} 42. Kg3 {[%clk 0:00:26.6]} 42... hxg4 {[%clk
0:00:26]} 43. hxg4 {[%clk 0:00:27.5]} 43... Kh6 {[%clk 0:00:25.8]} 44. Ra7
{[%clk 0:00:26]} 44... Rb4 {[%clk 0:00:24.9]} 45. Rc7 {[%clk 0:00:25.5]} 45...
Rb3+ {[%clk 0:00:23.7]} 46. Kf4 {[%clk 0:00:25.1]} 46... Rb4+ {[%clk 0:00:23.5]}
47. Kf3 {[%clk 0:00:25.5]} 47... Rb3+ {[%clk 0:00:22.9]} 48. Kf4 {[%clk
0:00:25.8]} 48... Rb4+ {[%clk 0:00:22.7]} 49. Kf3 {[%clk 0:00:26.2]} 49... Rb3+
{[%clk 0:00:22.6]} 50. Kf4 {[%clk 0:00:26.5]} 1/2-1/2

[Event "*** SCC Grand Prix: Titled Tuesday Blitz"]
[Site "Chess.com"]
[Date "2020.06.02"]
[Round "4"]
[White "GothamChess"]
[Black "LiemLe"]
[Result "1-0"]
[WhiteElo "2626"]
[BlackElo "2899"]
[TimeControl "180+1"]
[EndTime "10:39:48 PDT"]
[Termination "GothamChess won by checkmate"]

1. e4 {[%clk 0:03:00.9]} 1... c5 {[%clk 0:02:59.6]} 2. a3 {[%clk 0:03:01]} 2...
g6 {[%clk 0:02:52.4]} 3. Nc3 {[%clk 0:03:01.1]} 3... Bg7 {[%clk 0:02:52]} 4. Bc4
{[%clk 0:03:01.8]} 4... Nc6 {[%clk 0:02:51.3]} 5. d3 {[%clk 0:03:01.6]} 5... d6
{[%clk 0:02:49]} 6. h4 {[%clk 0:02:59.6]} 6... Nf6 {[%clk 0:02:38.7]} 7. h5
{[%clk 0:02:57.3]} 7... Nxh5 {[%clk 0:02:38.4]} 8. Rxh5 {[%clk 0:02:57.5]} 8...
gxh5 {[%clk 0:02:39.3]} 9. Qxh5 {[%clk 0:02:57.8]} 9... e6 {[%clk 0:02:34.5]}
10. Nf3 {[%clk 0:02:54.9]} 10... h6 {[%clk 0:02:19.6]} 11. Bf4 {[%clk
0:02:43.4]} 11... a6 {[%clk 0:02:12]} 12. Qh2 {[%clk 0:02:35]} 12... b5 {[%clk
0:01:50.7]} 13. Bb3 {[%clk 0:02:33.9]} 13... e5 {[%clk 0:01:24.1]} 14. Bg3
{[%clk 0:02:18.1]} 14... Be6 {[%clk 0:01:22.2]} 15. Bh4 {[%clk 0:01:54.9]} 15...
Bf6 {[%clk 0:01:16]} 16. Bd5 {[%clk 0:01:49.2]} 16... Kd7 {[%clk 0:00:59.5]} 17.
Rd1 {[%clk 0:01:23.4]} 17... Rb8 {[%clk 0:00:51.2]} 18. Kf1 {[%clk 0:01:15]}
18... Nd4 {[%clk 0:00:47.2]} 19. Bxf6 {[%clk 0:00:49.5]} 19... Qxf6 {[%clk
0:00:48.1]} 20. Ne1 {[%clk 0:00:47.7]} 20... b4 {[%clk 0:00:40.2]} 21. axb4
{[%clk 0:00:46.6]} 21... cxb4 {[%clk 0:00:41.1]} 22. Ne2 {[%clk 0:00:41.6]}
22... Nxe2 {[%clk 0:00:39.6]} 23. Kxe2 {[%clk 0:00:42.5]} 23... Bxd5 {[%clk
0:00:38.8]} 24. exd5 {[%clk 0:00:43.4]} 24... Qf5 {[%clk 0:00:30.7]} 25. Ra1
{[%clk 0:00:40.4]} 25... Rb6 {[%clk 0:00:27.4]} 26. Qh4 {[%clk 0:00:36.2]} 26...
h5 {[%clk 0:00:25]} 27. f3 {[%clk 0:00:34.8]} 27... Rc8 {[%clk 0:00:22.8]} 28.
Ra4 {[%clk 0:00:30.9]} 28... Rcb8 {[%clk 0:00:15.4]} 29. g3 {[%clk 0:00:28.5]}
29... f6 {[%clk 0:00:14.6]} 30. Ng2 {[%clk 0:00:27.9]} 30... Qg5 {[%clk
0:00:13.2]} 31. Qh3+ {[%clk 0:00:28]} 31... Kc7 {[%clk 0:00:12.8]} 32. Ne3
{[%clk 0:00:16.8]} 32... Rc8 {[%clk 0:00:05.5]} 33. Nc4 {[%clk 0:00:14.8]} 33...
Kb7 {[%clk 0:00:05.9]} 34. Qd7+ {[%clk 0:00:14.1]} 34... Rc7 {[%clk 0:00:06.3]}
35. Na5+ {[%clk 0:00:05.7]} 35... Kb8 {[%clk 0:00:03.6]} 36. Qd8+ {[%clk
0:00:04.7]} 36... Ka7 {[%clk 0:00:04.5]} 37. Qxc7+ {[%clk 0:00:04.9]} 37... Ka8
{[%clk 0:00:05.2]} 38. Qxb6 {[%clk 0:00:04.2]} 38... Qxg3 {[%clk 0:00:03.5]} 39.
Qb7# {[%clk 0:00:04.1]} 1-0

[Event "*** SCC Grand Prix: Titled Tuesday Blitz"]
[Site "Chess.com"]
[Date "2020.06.02"]
[Round "4"]
[White "Sibelephant"]
[Black "Gajuchess"]
[Result "1-0"]
[WhiteElo "3166"]
[BlackElo "2772"]
[TimeControl "180+1"]
[EndTime "10:39:49 PDT"]
[Termination "Sibelephant won by checkmate"]

1. d4 {[%clk 0:02:59.4]} 1... Nf6 {[%clk 0:02:59.3]} 2. Nf3 {[%clk 0:02:59.9]}
2... d5 {[%clk 0:02:59.1]} 3. Bg5 {[%clk 0:03:00]} 3... c5 {[%clk 0:02:58.3]} 4.
e3 {[%clk 0:02:59.4]} 4... Nc6 {[%clk 0:02:57.5]} 5. Nbd2 {[%clk 0:02:54.4]}
5... e6 {[%clk 0:02:50.4]} 6. c3 {[%clk 0:02:53.3]} 6... h6 {[%clk 0:02:50.5]}
7. Bh4 {[%clk 0:02:53]} 7... Be7 {[%clk 0:02:49.1]} 8. Bd3 {[%clk 0:02:52.9]}
8... O-O {[%clk 0:02:46.1]} 9. O-O {[%clk 0:02:52.5]} 9... b6 {[%clk 0:02:45.9]}
10. Ne5 {[%clk 0:02:52.7]} 10... Bb7 {[%clk 0:02:34.2]} 11. f4 {[%clk
0:02:52.9]} 11... Nd7 {[%clk 0:02:34.7]} 12. Bxe7 {[%clk 0:02:52.4]} 12... Nxe7
{[%clk 0:02:35.6]} 13. Nxd7 {[%clk 0:02:43.5]} 13... Qxd7 {[%clk 0:02:35.5]} 14.
Qh5 {[%clk 0:02:43.3]} 14... Nf5 {[%clk 0:02:17.3]} 15. Rf3 {[%clk 0:02:41.8]}
15... g6 {[%clk 0:02:04.2]} 16. Qh3 {[%clk 0:02:27.6]} 16... Kg7 {[%clk
0:02:04.2]} 17. g4 {[%clk 0:02:16.5]} 17... Nd6 {[%clk 0:02:03.8]} 18. f5 {[%clk
0:02:17]} 18... exf5 {[%clk 0:01:53.9]} 19. gxf5 {[%clk 0:02:16.5]} 19... Nxf5
{[%clk 0:01:14.2]} 20. Bxf5 {[%clk 0:02:04.7]} 20... gxf5 {[%clk 0:01:15.1]} 21.
Kf2 {[%clk 0:01:30.1]} 21... Kh7 {[%clk 0:01:11.8]} 22. Rg1 {[%clk 0:01:10.7]}
22... Qe6 {[%clk 0:01:04.5]} 23. Qxf5+ {[%clk 0:01:08.4]} 23... Qxf5 {[%clk
0:01:04.3]} 24. Rxf5 {[%clk 0:01:09.1]} 24... Rae8 {[%clk 0:01:00.8]} 25. dxc5
{[%clk 0:00:53.2]} 25... bxc5 {[%clk 0:01:00]} 26. Nb3 {[%clk 0:00:53.9]} 26...
c4 {[%clk 0:00:52.4]} 27. Nd4 {[%clk 0:00:47.1]} 27... Rb8 {[%clk 0:00:38.5]}
28. Rf6 {[%clk 0:00:24.2]} 28... Bc8 {[%clk 0:00:37.6]} 29. b4 {[%clk
0:00:24.2]} 29... cxb3 {[%clk 0:00:37.2]} 30. axb3 {[%clk 0:00:24.8]} 30... Rb6
{[%clk 0:00:37.7]} 31. Rxb6 {[%clk 0:00:23.2]} 31... axb6 {[%clk 0:00:38.6]} 32.
Ra1 {[%clk 0:00:23.4]} 32... Rg8 {[%clk 0:00:37.2]} 33. Ra7 {[%clk 0:00:22.6]}
33... Rg7 {[%clk 0:00:35.2]} 34. Ne2 {[%clk 0:00:21.2]} 34... Bf5 {[%clk
0:00:32.4]} 35. Rb7 {[%clk 0:00:19.2]} 35... h5 {[%clk 0:00:16.3]} 36. Rxb6
{[%clk 0:00:18.6]} 36... h4 {[%clk 0:00:15.8]} 37. Nf4 {[%clk 0:00:14.6]} 37...
Be4 {[%clk 0:00:15.4]} 38. Rb5 {[%clk 0:00:09.9]} 38... Kh6 {[%clk 0:00:13.7]}
39. c4 {[%clk 0:00:10.4]} 39... dxc4 {[%clk 0:00:13.2]} 40. Rh5# {[%clk
0:00:09.9]} 1-0

[Event "*** SCC Grand Prix: Titled Tuesday Blitz"]
[Site "Chess.com"]
[Date "2020.06.02"]
[Round "4"]
[White "eljanov"]
[Black "DaggiGretarsson"]
[Result "0-1"]
[WhiteElo "2822"]
[BlackElo "2669"]
[TimeControl "180+1"]
[EndTime "10:39:49 PDT"]
[Termination "DaggiGretarsson won on time"]

1. Nf3 {[%clk 0:03:00.9]} 1... d5 {[%clk 0:02:58.8]} 2. g3 {[%clk 0:03:00.7]}
2... Nc6 {[%clk 0:02:58]} 3. d4 {[%clk 0:03:00.3]} 3... Bf5 {[%clk 0:02:56.5]}
4. Bg2 {[%clk 0:02:59.8]} 4... Nb4 {[%clk 0:02:50.9]} 5. Na3 {[%clk 0:02:57.7]}
5... e6 {[%clk 0:02:49.2]} 6. O-O {[%clk 0:02:53.9]} 6... h6 {[%clk 0:02:43.5]}
7. c3 {[%clk 0:02:42.7]} 7... Na6 {[%clk 0:02:42.3]} 8. Ne5 {[%clk 0:02:36.5]}
8... c6 {[%clk 0:02:40.6]} 9. c4 {[%clk 0:02:23.4]} 9... Nf6 {[%clk 0:01:58.5]}
10. Qa4 {[%clk 0:02:02.5]} 10... Rc8 {[%clk 0:01:47.4]} 11. Bf4 {[%clk 0:01:49]}
11... Be7 {[%clk 0:00:45.7]} 12. Rac1 {[%clk 0:01:42.3]} 12... Qb6 {[%clk
0:00:42.8]} 13. c5 {[%clk 0:01:16.6]} 13... Qb4 {[%clk 0:00:41.2]} 14. b3 {[%clk
0:00:52.7]} 14... Qxa4 {[%clk 0:00:35.9]} 15. bxa4 {[%clk 0:00:52.7]} 15... Nb4
{[%clk 0:00:36.1]} 16. Rc3 {[%clk 0:00:39.7]} 16... a5 {[%clk 0:00:32.3]} 17.
Rb3 {[%clk 0:00:39.6]} 17... Ne4 {[%clk 0:00:27.6]} 18. f3 {[%clk 0:00:37.7]}
18... Nf6 {[%clk 0:00:26.4]} 19. Bd2 {[%clk 0:00:35.9]} 19... Nd7 {[%clk
0:00:16.5]} 20. Nxd7 {[%clk 0:00:32]} 20... Kxd7 {[%clk 0:00:16.7]} 21. e4
{[%clk 0:00:27.7]} 21... Bg6 {[%clk 0:00:15.9]} 22. Bxb4 {[%clk 0:00:27.3]}
22... axb4 {[%clk 0:00:15.7]} 23. Rxb4 {[%clk 0:00:27.7]} 23... Rc7 {[%clk
0:00:14.4]} 24. Nb1 {[%clk 0:00:21.5]} 24... Ra8 {[%clk 0:00:11.8]} 25. Nc3
{[%clk 0:00:18.9]} 25... dxe4 {[%clk 0:00:11.5]} 26. fxe4 {[%clk 0:00:17.8]}
26... e5 {[%clk 0:00:11.9]} 27. Rd1 {[%clk 0:00:04.7]} 27... Ke8 {[%clk
0:00:11]} 28. Rc4 {[%clk 0:00:02.9]} 28... exd4 {[%clk 0:00:09.6]} 29. Rdxd4
{[%clk 0:00:02.9]} 29... Ra5 {[%clk 0:00:09.3]} 30. Kf1 {[%clk 0:00:01.7]} 30...
Bxc5 {[%clk 0:00:08.9]} 31. Rd1 {[%clk 0:00:01.8]} 31... Rd7 {[%clk 0:00:06.9]}
32. Rxd7 {[%clk 0:00:01.3]} 32... Kxd7 {[%clk 0:00:06.9]} 33. e5 {[%clk
0:00:01.6]} 33... Bd3+ {[%clk 0:00:02.9]} 0-1

[Event "*** SCC Grand Prix: Titled Tuesday Blitz"]
[Site "Chess.com"]
[Date "2020.06.02"]
[Round "4"]
[White "Aleksandar-Topalov"]
[Black "Stewie_89"]
[Result "1/2-1/2"]
[WhiteElo "2449"]
[BlackElo "2628"]
[TimeControl "180+1"]
[EndTime "10:39:49 PDT"]
[Termination "Game drawn by agreement"]

1. b3 {[%clk 0:03:00.9]} 1... Nf6 {[%clk 0:02:59]} 2. Bb2 {[%clk 0:03:00.7]}
2... d5 {[%clk 0:02:59]} 3. Nf3 {[%clk 0:03:00.3]} 3... c5 {[%clk 0:02:58.7]} 4.
e3 {[%clk 0:03:00.3]} 4... Nc6 {[%clk 0:02:58.8]} 5. Bb5 {[%clk 0:02:59.7]} 5...
g6 {[%clk 0:02:51.1]} 6. c4 {[%clk 0:02:58.7]} 6... dxc4 {[%clk 0:02:47.5]} 7.
Bxc4 {[%clk 0:02:58.2]} 7... Bg7 {[%clk 0:02:46.7]} 8. O-O {[%clk 0:02:58.4]}
8... O-O {[%clk 0:02:46.1]} 9. a3 {[%clk 0:02:58.9]} 9... b6 {[%clk 0:02:45.9]}
10. Qc2 {[%clk 0:02:58.6]} 10... Bb7 {[%clk 0:02:45.6]} 11. Be2 {[%clk
0:02:58.5]} 11... Rc8 {[%clk 0:02:43.1]} 12. d3 {[%clk 0:02:58.8]} 12... Qc7
{[%clk 0:02:42.3]} 13. Nbd2 {[%clk 0:02:58]} 13... e5 {[%clk 0:02:42.2]} 14.
Rac1 {[%clk 0:02:53.6]} 14... Qb8 {[%clk 0:02:38.2]} 15. Qb1 {[%clk 0:02:53.3]}
15... Nd5 {[%clk 0:02:30.5]} 16. Rc2 {[%clk 0:02:47.6]} 16... h6 {[%clk
0:02:28.4]} 17. Rfc1 {[%clk 0:02:47.5]} 17... Qd6 {[%clk 0:02:21.6]} 18. Nc4
{[%clk 0:02:45.8]} 18... Qe6 {[%clk 0:02:21.1]} 19. Qa1 {[%clk 0:02:45.2]} 19...
Rce8 {[%clk 0:02:16.1]} 20. Bf1 {[%clk 0:02:44.1]} 20... Kh7 {[%clk 0:02:07.3]}
21. d4 {[%clk 0:02:20.2]} 21... cxd4 {[%clk 0:01:33.9]} 22. exd4 {[%clk
0:02:19.7]} 22... e4 {[%clk 0:01:34.2]} 23. Nfe5 {[%clk 0:02:20]} 23... Nxe5
{[%clk 0:01:31.6]} 24. dxe5 {[%clk 0:02:14.4]} 24... Re7 {[%clk 0:01:13.4]} 25.
Nd6 {[%clk 0:01:56.5]} 25... e3 {[%clk 0:00:52.8]} 26. fxe3 {[%clk 0:01:41.8]}
26... Nxe3 {[%clk 0:00:52.3]} 27. Rc7 {[%clk 0:01:41.2]} 27... Nxf1 {[%clk
0:00:47.8]} 28. Rxe7 {[%clk 0:01:39.8]} 28... Qxe7 {[%clk 0:00:46.2]} 29. Rxf1
{[%clk 0:01:38.5]} 29... Bd5 {[%clk 0:00:45.8]} 30. Qd1 {[%clk 0:01:32.4]} 30...
Qe6 {[%clk 0:00:43.5]} 31. b4 {[%clk 0:01:26.6]} 31... Kg8 {[%clk 0:00:35]} 32.
Nb5 {[%clk 0:01:16.6]} 32... Bc4 {[%clk 0:00:30.1]} 33. Nd4 {[%clk 0:01:15.9]}
33... Qxe5 {[%clk 0:00:29.9]} 34. Re1 {[%clk 0:01:12.4]} 34... Qd5 {[%clk
0:00:30]} 35. Qa1 {[%clk 0:01:07.5]} 35... Rd8 {[%clk 0:00:26]} 36. Nf3 {[%clk
0:01:07]} 36... Bxb2 {[%clk 0:00:25.4]} 37. Qxb2 {[%clk 0:01:07.4]} 37... Qd6
{[%clk 0:00:22.9]} 38. h4 {[%clk 0:00:55.8]} 38... Bd5 {[%clk 0:00:20.9]} 39.
Rd1 {[%clk 0:00:53.6]} 39... Qc7 {[%clk 0:00:13.8]} 40. Qf6 {[%clk 0:00:49.4]}
40... Rd6 {[%clk 0:00:13.3]} 41. Qe5 {[%clk 0:00:47.9]} 41... Qd7 {[%clk
0:00:10.9]} 42. h5 {[%clk 0:00:44.3]} 42... Qe6 {[%clk 0:00:10.5]} 43. hxg6
{[%clk 0:00:33.8]} 43... Qxe5 {[%clk 0:00:07.3]} 44. Nxe5 {[%clk 0:00:33.6]}
44... fxg6 {[%clk 0:00:07.2]} 45. Nxg6 {[%clk 0:00:33]} 45... Rxg6 {[%clk
0:00:07.4]} 46. Rxd5 {[%clk 0:00:32.9]} 46... Rg3 {[%clk 0:00:08.3]} 47. Rd8+
{[%clk 0:00:32.1]} 47... Kh7 {[%clk 0:00:08.6]} 48. Rd7+ {[%clk 0:00:32.5]}
48... Rg7 {[%clk 0:00:09]} 1/2-1/2

[Event "*** SCC Grand Prix: Titled Tuesday Blitz"]
[Site "Chess.com"]
[Date "2020.06.02"]
[Round "4"]
[White "aisha_zakirova"]
[Black "elegant285"]
[Result "0-1"]
[WhiteElo "1966"]
[BlackElo "2369"]
[TimeControl "180+1"]
[EndTime "10:39:49 PDT"]
[Termination "elegant285 won on time"]

1. d4 {[%clk 0:03:00.9]} 1... Nf6 {[%clk 0:02:59.7]} 2. c4 {[%clk 0:03:01.1]}
2... e6 {[%clk 0:03:00.1]} 3. Nf3 {[%clk 0:02:59.8]} 3... Bb4+ {[%clk
0:02:58.3]} 4. Bd2 {[%clk 0:02:59]} 4... Qe7 {[%clk 0:02:58.7]} 5. Nc3 {[%clk
0:02:56.6]} 5... O-O {[%clk 0:02:56.7]} 6. Qc2 {[%clk 0:02:55.9]} 6... Nc6
{[%clk 0:02:52.7]} 7. e4 {[%clk 0:02:53.7]} 7... d6 {[%clk 0:02:50.2]} 8. Bd3
{[%clk 0:02:51]} 8... Bxc3 {[%clk 0:02:47.9]} 9. bxc3 {[%clk 0:02:49.3]} 9... e5
{[%clk 0:02:48.3]} 10. O-O {[%clk 0:02:47.8]} 10... Bg4 {[%clk 0:02:46.1]} 11.
d5 {[%clk 0:02:40.8]} 11... Nb8 {[%clk 0:02:34.5]} 12. Ne1 {[%clk 0:02:35.8]}
12... Na6 {[%clk 0:02:31.5]} 13. Be3 {[%clk 0:02:33.2]} 13... Nd7 {[%clk
0:02:24.7]} 14. Be2 {[%clk 0:02:23.1]} 14... Bxe2 {[%clk 0:02:16.9]} 15. Qxe2
{[%clk 0:02:22.4]} 15... Nac5 {[%clk 0:02:17.8]} 16. f3 {[%clk 0:02:18.4]} 16...
f5 {[%clk 0:02:17.2]} 17. Nd3 {[%clk 0:01:32.8]} 17... fxe4 {[%clk 0:02:16.2]}
18. Nxc5 {[%clk 0:01:31.7]} 18... exf3 {[%clk 0:02:13.7]} 19. Rxf3 {[%clk
0:01:09.4]} 19... dxc5 {[%clk 0:02:13.3]} 20. Rg3 {[%clk 0:01:03.1]} 20... Rf7
{[%clk 0:02:00.7]} 21. Bg5 {[%clk 0:01:00.2]} 21... Qd6 {[%clk 0:01:59.7]} 22.
Qh5 {[%clk 0:00:51.5]} 22... Raf8 {[%clk 0:01:52.2]} 23. Bh6 {[%clk 0:00:29.9]}
23... Kh8 {[%clk 0:01:33.2]} 24. Be3 {[%clk 0:00:23.6]} 24... Nf6 {[%clk
0:01:25.8]} 25. Qh4 {[%clk 0:00:21.7]} 25... c6 {[%clk 0:01:18.1]} 26. Rh3
{[%clk 0:00:20.5]} 26... cxd5 {[%clk 0:01:15]} 27. Bg5 {[%clk 0:00:19.5]} 27...
g6 {[%clk 0:01:09.3]} 28. Rd1 {[%clk 0:00:18.2]} 28... d4 {[%clk 0:01:06.7]} 29.
cxd4 {[%clk 0:00:15.5]} 29... cxd4 {[%clk 0:01:06.8]} 30. Re1 {[%clk 0:00:14.5]}
30... Nh5 {[%clk 0:01:02.6]} 31. g4 {[%clk 0:00:13.2]} 31... Nf6 {[%clk
0:00:57.2]} 32. c5 {[%clk 0:00:12.7]} 32... Qe6 {[%clk 0:00:54.5]} 33. Rf1
{[%clk 0:00:11.7]} 33... Qxg4+ {[%clk 0:00:50.8]} 34. Kh1 {[%clk 0:00:11.1]}
34... Qxh4 {[%clk 0:00:50]} 35. Rxh4 {[%clk 0:00:10.5]} 35... Nd5 {[%clk
0:00:47.6]} 36. Re1 {[%clk 0:00:09.5]} 36... Rf1+ {[%clk 0:00:45.4]} 37. Rxf1
{[%clk 0:00:09.3]} 37... Rxf1+ {[%clk 0:00:46.3]} 38. Kg2 {[%clk 0:00:09.7]}
38... Rf5 {[%clk 0:00:45.5]} 39. Bd2 {[%clk 0:00:07.6]} 39... Kg7 {[%clk
0:00:44.3]} 40. Re4 {[%clk 0:00:07.1]} 40... Nf6 {[%clk 0:00:43.5]} 41. Re2
{[%clk 0:00:05.2]} 41... e4 {[%clk 0:00:43.9]} 42. h3 {[%clk 0:00:02.3]} 42...
e3 {[%clk 0:00:44.1]} 43. Be1 {[%clk 0:00:02.2]} 43... Ne4 {[%clk 0:00:44.1]}
0-1

[Event "*** SCC Grand Prix: Titled Tuesday Blitz"]
[Site "Chess.com"]
[Date "2020.06.02"]
[Round "4"]
[White "GMJustin"]
[Black "Klavdia_Nik"]
[Result "1-0"]
[WhiteElo "2288"]
[BlackElo "2058"]
[TimeControl "180+1"]
[EndTime "10:39:49 PDT"]
[Termination "GMJustin won on time"]

1. e4 {[%clk 0:02:59.8]} 1... e5 {[%clk 0:02:54.7]} 2. Nf3 {[%clk 0:02:58.4]}
2... Nc6 {[%clk 0:02:55]} 3. Bb5 {[%clk 0:02:58.4]} 3... a6 {[%clk 0:02:54.6]}
4. Ba4 {[%clk 0:02:58.4]} 4... Nf6 {[%clk 0:02:54.5]} 5. O-O {[%clk 0:02:57.1]}
5... Be7 {[%clk 0:02:54.5]} 6. Re1 {[%clk 0:02:53.3]} 6... b5 {[%clk 0:02:54.3]}
7. Bb3 {[%clk 0:02:53.4]} 7... O-O {[%clk 0:02:51.9]} 8. d4 {[%clk 0:02:48.9]}
8... Nxd4 {[%clk 0:02:40.7]} 9. Nxd4 {[%clk 0:02:30.9]} 9... exd4 {[%clk
0:02:40.2]} 10. e5 {[%clk 0:02:30.4]} 10... Ne8 {[%clk 0:02:29.9]} 11. c3 {[%clk
0:02:26.1]} 11... dxc3 {[%clk 0:02:18.4]} 12. Nxc3 {[%clk 0:02:25.7]} 12... Bb7
{[%clk 0:02:12.9]} 13. Nd5 {[%clk 0:02:19.2]} 13... Bc5 {[%clk 0:01:59.7]} 14.
Bf4 {[%clk 0:02:12.2]} 14... c6 {[%clk 0:01:46.4]} 15. Nc3 {[%clk 0:02:08.5]}
15... Nc7 {[%clk 0:01:46.4]} 16. Ne4 {[%clk 0:02:03.4]} 16... Be7 {[%clk
0:01:44.9]} 17. Qg4 {[%clk 0:01:59]} 17... Kh8 {[%clk 0:01:37.7]} 18. Bg5 {[%clk
0:01:50.5]} 18... Bxg5 {[%clk 0:01:29.8]} 19. Nxg5 {[%clk 0:01:49.5]} 19... Ne6
{[%clk 0:01:26.3]} 20. Bxe6 {[%clk 0:01:36.1]} 20... fxe6 {[%clk 0:00:54.7]} 21.
Qh5 {[%clk 0:01:34.8]} 21... h6 {[%clk 0:00:55.1]} 22. Nf7+ {[%clk 0:01:34.4]}
22... Rxf7 {[%clk 0:00:54.6]} 23. Qxf7 {[%clk 0:01:35]} 23... c5 {[%clk
0:00:52.3]} 24. Rad1 {[%clk 0:01:25.6]} 24... Bc6 {[%clk 0:00:52]} 25. f4 {[%clk
0:01:14.9]} 25... c4 {[%clk 0:00:38.3]} 26. Kh1 {[%clk 0:01:00.7]} 26... Qh4
{[%clk 0:00:29.4]} 27. Re3 {[%clk 0:00:41.3]} 27... Qf2 {[%clk 0:00:11.1]} 28.
Rg3 {[%clk 0:00:35.8]} 28... Rg8 {[%clk 0:00:11.4]} 29. f5 {[%clk 0:00:17.5]}
29... exf5 {[%clk 0:00:09.2]} 30. e6 {[%clk 0:00:16]} 30... dxe6 {[%clk
0:00:07.8]} 31. Qxe6 {[%clk 0:00:11.6]} 31... Be4 {[%clk 0:00:07.6]} 32. Rg6
{[%clk 0:00:05.8]} 32... Qf4 {[%clk 0:00:04.2]} 33. h3 {[%clk 0:00:05]} 33...
Bd3 {[%clk 0:00:02.1]} 34. Re1 {[%clk 0:00:04.2]} 1-0